fUST/lending_fUST_20240812
["ID","MTS","AMOUNT","RATE_DAILY","PERIOD"]
[334683920,1723469445395,-500.0,0.00020821,3]
[334683921,1723469445405,-500.0,0.00020821,3]
[334683922,1723469445415,-500.0,0.00020821,3]
[334683923,1723469445425,-500.0,0.00020821,3]
[334683924,1723469445435,-500.0,0.00020821,3]
[334683925,1723469445445,-502.36932696,0.00020821,3]
[334683926,1723469445455,-1052.48,0.00020821,3]
[334683927,1723469445464,-506.12883141,0.00020821,3]
[334683928,1723469445474,-500.0,0.00020821,3]
[334683929,1723469445483,-709.13,0.00020821,3]
[334683930,1723469445493,-500.0,0.00020821,3]
[334683931,1723469445503,-581.43,0.00020821,3]
[334683932,1723469445512,-500.0,0.00020821,3]
[334683933,1723469445522,-502.68630497,0.00020821,3]
[334683934,1723469445531,-151.0,0.00020821,2]
[334683935,1723469445542,-151.0,0.00020821,2]
[334683936,1723469445551,-500.0,0.00020821,3]
[334683937,1723469445560,-500.0,0.00020821,3]
[334683938,1723469445570,-500.0,0.00020821,3]
[334683939,1723469445580,-151.0,0.00020821,2]
[334683940,1723469445589,-151.0,0.00020821,2]
[334683941,1723469445600,-500.0,0.00020821,3]
[334683942,1723469445609,-521.61,0.00020821,3]
[334683943,1723469445618,-151.0,0.00020821,2]
[334683944,1723469445628,-1053.49,0.00020821,3]
[334683945,1723469445639,-500.0,0.00020821,3]
[334683946,1723469445650,-500.0,0.00020821,3]
[334683947,1723469445660,-1614.62,0.00020821,3]
[334683948,1723469445669,-511.905593,0.00020821,2]
[334683949,1723469445679,-518.21,0.00020821,3]
[334683950,1723469445689,-511.905593,0.00020821,2]
[334683951,1723469445699,-511.905593,0.00020821,2]
[334683952,1723469445709,-511.905593,0.00020821,2]
[334683953,1723469445719,-469.7200934,0.00020821,3]
[334683954,1723469445728,-1139.51,0.00020821,3]
[334683955,1723469445738,-511.905593,0.00020821,2]
[334683956,1723469445748,-500.0,0.00020821,3]
[334683957,1723469445758,-511.905593,0.00020821,2]
[334683958,1723469445768,-511.905593,0.00020821,2]
[334683959,1723469445778,-511.905593,0.00020821,2]
[334683960,1723469445788,-500.0,0.00020821,3]
[334683961,1723469445798,-500.0,0.00020821,3]
[334683962,1723469445808,-500.0,0.00020821,3]
[334683963,1723469445818,-1544.26,0.00020821,3]
[334683964,1723469445828,-153.098448,0.00020821,2]
[334683965,1723469445838,-151.0,0.00020821,2]
[334683966,1723469445847,-151.0,0.00020821,2]
[334683967,1723469445857,-151.0,0.00020821,2]
[334683968,1723469445867,-500.0,0.00020821,3]
[334683969,1723469445877,-1451.28,0.00020821,3]
[334683970,1723469445894,-500.0,0.00020821,2]
[334683971,1723469445904,-1482.26,0.00020821,3]
[334683972,1723469445913,-500.0,0.00020821,3]
[334683973,1723469445923,-500.0,0.00020821,3]
[334683974,1723469445934,-500.0,0.00020821,3]
[334683975,1723469445943,-500.0,0.00020821,3]
[334683976,1723469445953,-500.0,0.00020821,3]
[334683977,1723469445963,-501.59092451,0.00020821,3]
[334683978,1723469445972,-504.02234705,0.00020821,3]
[334683979,1723469445983,-502.81628372,0.00020821,3]
[334683980,1723469445992,-500.0,0.00020821,3]
[334683981,1723469446002,-151.0,0.00020821,2]
[334683983,1723469446012,-287.283186,0.00020821,2]
[334683985,1723469446022,-500.0,0.00020821,3]
[334683987,1723469446031,-2342.91,0.00020821,3]
[334683988,1723469446041,-287.72694153,0.00020821,3]
[334683989,1723469446050,-500.0,0.00020821,3]
[334683990,1723469446060,-501.68433035,0.00020821,3]
[334683991,1723469446069,-500.0,0.00020821,3]
[334683992,1723469446078,-1334.65,0.00020821,3]
[334683993,1723469446088,-504.90175956,0.00020821,3]
[334683994,1723469446097,-500.0,0.00020821,3]
[334683995,1723469446106,-413.764054,0.00020821,2]
[334683996,1723469446116,-413.764054,0.00020821,2]
[334683997,1723469446125,-413.764054,0.00020821,2]
[334683998,1723469446134,-413.764054,0.00020821,2]
[334683999,1723469446148,-792.5,0.00020821,3]
[334684000,1723469446161,-500.0,0.00020821,3]
[334684001,1723469446171,-500.0,0.00020821,3]
[334684002,1723469446180,-500.0,0.00020821,3]
[334684003,1723469446189,-413.764054,0.00020821,2]
[334684004,1723469446198,-413.764054,0.00020821,2]
[334684005,1723469446207,-500.0,0.00020821,3]
[334684006,1723469446217,-413.764054,0.00020821,2]
[334684007,1723469446226,-413.764054,0.00020821,2]
[334684008,1723469446235,-500.0,0.00020821,3]
[334684009,1723469446245,-151.0,0.00020821,2]
[334684010,1723469446254,-151.0,0.00020821,2]
[334684011,1723469446264,-6539.4,0.00020821,3]
[334684017,1723469446386,-151.0,0.00020821,2]
[334684018,1723469446400,-500.0,0.00020821,3]
[334684020,1723469446410,-151.0,0.00020821,2]
[334684022,1723469446418,-500.0,0.00020821,3]
[334684023,1723469446428,-157.855426,0.00020821,2]
[334684024,1723469446437,-534.12,0.00020821,2]
[334684025,1723469446446,-151.0,0.00020821,2]
[334684026,1723469446457,-151.0,0.00020821,2]
[334684027,1723469446466,-151.0,0.00020821,2]
[334684028,1723469446476,-415.02991626,0.00020821,3]
[334684029,1723469446485,-546.69468098,0.00020821,3]
[334684031,1723469446494,-1001.68,0.00020821,3]
[334684033,1723469446503,-500.0,0.00020821,3]
[334684035,1723469446512,-2046.93,0.00020821,3]
[334684037,1723469446522,-500.0,0.00020821,3]
[334684038,1723469446532,-501.04370393,0.00020821,3]
[334684040,1723469446541,-1795.55,0.00020821,3]
[334684041,1723469446550,-500.0,0.00020821,3]
[334684042,1723469446559,-500.0,0.00020821,3]
[334684043,1723469446568,-505.18072017,0.00020821,3]
[334684044,1723469446577,-500.0,0.00020821,3]
[334684045,1723469446587,-200.15609373,0.00020821,3]
[334684047,1723469446596,-507.01067187,0.00020821,3]
[334684049,1723469446605,-178.58257224,0.00020821,3]
[334684050,1723469446615,-500.0,0.00020821,3]
[334684051,1723469446624,-1931.14,0.00020821,3]
[334684052,1723469446633,-500.0,0.00020821,3]
[334684053,1723469446645,-500.0,0.00020821,3]
[334684054,1723469446654,-500.0,0.00020821,3]
[334684055,1723469446663,-500.0,0.00020821,3]
[334684056,1723469446673,-500.0,0.00020821,3]
[334684057,1723469446683,-500.0,0.00020821,3]
[334684058,1723469446692,-500.0,0.00020821,3]
[334684059,1723469446701,-500.0,0.00020821,3]
[334684060,1723469446711,-500.0,0.00020821,3]
[334684061,1723469446720,-564.08093968,0.00020821,3]
[334684062,1723469446729,-500.0,0.00020821,3]
[334684063,1723469446738,-500.0,0.00020821,3]
[334684064,1723469446747,-1101.24,0.00020821,3]
[334684065,1723469446756,-151.0,0.00020821,2]
[334684066,1723469446766,-529.89,0.00020821,3]
[334684067,1723469446775,-151.0,0.00020821,2]
[334684068,1723469446785,-405.2448557,0.00020821,3]
[334684069,1723469446795,-500.0,0.00020821,3]
[334684070,1723469446804,-761.7,0.00020821,3]
[334684071,1723469446813,-769.72,0.00020821,3]
[334684072,1723469446823,-500.0,0.00020821,3]
[334684073,1723469446834,-1645.37,0.00020821,3]
[334684074,1723469446844,-513.66216797,0.00020821,3]
[334684075,1723469446853,-530.52,0.00020821,3]
[334684076,1723469446862,-536.4,0.00020821,3]
[334684077,1723469446872,-507.05572873,0.00020821,3]
[334684078,1723469446882,-500.0,0.00020821,3]
[334684079,1723469446896,-854.3,0.00020821,3]
[334684080,1723469446906,-7227.56,0.00020821,3]
[334684081,1723469446915,-503.17224724,0.00020821,3]
[334684082,1723469446925,-504.17183432,0.00020821,3]
[334684083,1723469446935,-500.0,0.00020821,3]
[334684084,1723469446944,-500.0,0.00020821,3]
[334684085,1723469446955,-647.08,0.00020821,3]
[334684086,1723469446966,-500.0,0.00020821,3]
[334684087,1723469446975,-647.08,0.00020821,3]
[334684088,1723469446984,-647.08,0.00020821,3]
[334684089,1723469446993,-647.08,0.00020821,3]
[334684090,1723469447002,-647.08,0.00020821,3]
[334684091,1723469447013,-647.08,0.00020821,3]
[334684092,1723469447022,-647.08,0.00020821,3]
[334684093,1723469447031,-500.0,0.00020821,3]
[334684094,1723469447040,-647.08,0.00020821,3]
[334684095,1723469447049,-647.08,0.00020821,3]
[334684096,1723469447058,-647.08,0.00020821,3]
[334684097,1723469447067,-647.08,0.00020821,3]
[334684098,1723469447076,-743.55,0.00020821,3]
[334684099,1723469447086,-647.08,0.00020821,3]
[334684100,1723469447095,-647.08,0.00020821,3]
[334684101,1723469447105,-1337.68,0.00020821,3]
[334684102,1723469447115,-647.08,0.00020821,3]
[334684103,1723469447124,-647.08,0.00020821,3]
[334684104,1723469447133,-647.08,0.00020821,3]
[334684105,1723469447146,-647.08,0.00020821,3]
[334684106,1723469447156,-647.08,0.00020821,3]
[334684107,1723469447165,-647.08,0.00020821,3]
[334684108,1723469447174,-647.08,0.00020821,3]
[334684109,1723469447184,-500.0,0.00020821,3]
[334684110,1723469447193,-647.08,0.00020821,3]
[334684111,1723469447202,-500.0,0.00020821,3]
[334684112,1723469447212,-647.08,0.00020821,3]
[334684113,1723469447221,-500.0,0.00020821,3]
[334684114,1723469447230,-647.08,0.00020821,3]
[334684115,1723469447239,-647.30742153,0.00020821,3]
[334684116,1723469447248,-2582.81,0.00020821,3]
[334684117,1723469447257,-504.78252744,0.00020821,3]
[334684118,1723469447266,-500.0,0.00020821,3]
[334684119,1723469447276,-521.18192109,0.00020821,3]
[334684120,1723469447285,-500.0,0.00020821,3]
[334684121,1723469447295,-500.0,0.00020821,3]
[334684122,1723469447305,-500.0,0.00020821,3]
[334684123,1723469447315,-827.28,0.00020821,3]
[334684124,1723469447324,-786.74,0.00020821,3]
[334684125,1723469447334,-500.0,0.00020821,3]
[334684126,1723469447343,-1740.42,0.00020821,3]
[334684127,1723469447353,-500.0,0.00020821,3]
[334684128,1723469447362,-1325.33,0.00020821,3]
[334684129,1723469447371,-151.0,0.00020821,2]
[334684130,1723469447381,-503.91882432,0.00020821,3]
[334684131,1723469447392,-151.0,0.00020821,2]
[334684132,1723469447402,-151.0,0.00020821,2]
[334684133,1723469447411,-506.07141917,0.00020821,3]
[334684134,1723469447420,-500.0,0.00020821,3]
[334684135,1723469447430,-500.0,0.00020821,3]
[334684136,1723469447440,-500.47259413,0.00020821,3]
[334684137,1723469447450,-932.14,0.00020821,3]
[334684138,1723469447459,-500.0,0.00020821,3]
[334684139,1723469447469,-500.0,0.00020821,3]
[334684140,1723469447478,-500.0,0.00020821,3]
[334684141,1723469447487,-269.70147985,0.00020821,3]
[334684142,1723469447497,-1941.27,0.00020821,3]
[334684143,1723469447506,-500.0,0.00020821,3]
[334684144,1723469447515,-587.25,0.00020821,3]
[334684145,1723469447525,-500.0,0.00020821,3]
[334684146,1723469447534,-8288.29,0.00020821,3]
[334684147,1723469447544,-8288.29,0.00020821,3]
[334684148,1723469447554,-500.0,0.00020821,3]
[334684149,1723469447563,-8288.29,0.00020821,3]
[334684150,1723469447572,-500.0,0.00020821,3]
[334684151,1723469447582,-8288.29,0.00020821,3]
[334684152,1723469447592,-500.0,0.00020821,3]
[334684153,1723469447601,-8288.29,0.00020821,3]
[334684154,1723469447611,-500.0,0.00020821,3]
[334684155,1723469447623,-8288.29,0.00020821,3]
[334684156,1723469447635,-8288.29,0.00020821,3]
[334684157,1723469447646,-8288.29,0.00020821,3]
[334684158,1723469447656,-3749.33,0.00020821,3]
[334684159,1723469447666,-8288.29,0.00020821,3]
[334684160,1723469447675,-8288.29,0.00020821,3]
[334684161,1723469447685,-8288.29,0.00020821,3]
[334684162,1723469447694,-8288.29,0.00020821,3]
[334684163,1723469447704,-706.021002,0.00020821,2]
[334684164,1723469447714,-8288.29,0.00020821,3]
[334684165,1723469447723,-706.021002,0.00020821,2]
[334684166,1723469447733,-8703.45,0.00020821,3]
[334684167,1723469447742,-8288.29,0.00020821,3]
[334684168,1723469447751,-706.021002,0.00020821,2]
[334684169,1723469447760,-8288.29,0.00020821,3]
[334684170,1723469447770,-8288.29,0.00020821,3]
[334684171,1723469447779,-8288.29,0.00020821,3]
[334684172,1723469447789,-8288.29,0.00020821,3]
[334684173,1723469447800,-8288.29,0.00020821,3]
[334684174,1723469447811,-8288.29,0.00020821,3]
[334684175,1723469447821,-8288.29,0.00020821,3]
[334684176,1723469447831,-2530.68,0.00020821,3]
[334684177,1723469447840,-8288.29,0.00020821,3]
[334684178,1723469447851,-8288.29,0.00020821,3]
[334684179,1723469447862,-151.0,0.00020821,2]
[334684180,1723469447872,-500.0,0.00020821,3]
[334684181,1723469447885,-151.0,0.00020821,2]
[334684182,1723469447898,-706.021002,0.00020821,2]
[334684183,1723469447909,-8288.29250082,0.00020821,3]
[334684184,1723469447919,-706.021002,0.00020821,2]
[334684185,1723469447929,-151.0,0.00020821,2]
[334684186,1723469447938,-1828.7,0.00020821,3]
[334684187,1723469447949,-706.021002,0.00020821,2]
[334684188,1723469447959,-151.0,0.00020821,2]
[334684189,1723469447970,-5397.21,0.00020821,3]
[334684190,1723469447980,-151.0,0.00020821,2]
[334684191,1723469447990,-298.033078,0.00020821,2]
[334684192,1723469447999,-500.0,0.00020821,3]
[334684193,1723469448010,-501.52233401,0.00020821,3]
[334684194,1723469448020,-505.39360485,0.00020821,3]
[334684195,1723469448030,-151.0,0.00020821,2]
[334684196,1723469448040,-675.95,0.00020821,3]
[334684197,1723469448050,-500.0,0.00020821,3]
[334684198,1723469448060,-264.289944,0.00020821,2]
[334684199,1723469448070,-264.289944,0.00020821,2]
[334684200,1723469448080,-2519.31,0.00020821,3]
[334684201,1723469448091,-264.289944,0.00020821,2]
[334684202,1723469448101,-507.27813526,0.00020821,3]
[334684203,1723469448111,-500.0,0.00020821,3]
[334684204,1723469448120,-264.289944,0.00020821,2]
[334684205,1723469448130,-264.289944,0.00020821,2]
[334684206,1723469448143,-264.289944,0.00020821,2]
[334684207,1723469448152,-1577.49,0.00020821,3]
[334684208,1723469448161,-518.96623329,0.00020821,3]
[334684209,1723469448171,-500.0,0.00020821,3]
[334684210,1723469448181,-500.0,0.00020821,3]
[334684211,1723469448191,-502.65893084,0.00020821,3]
[334684212,1723469448201,-500.0,0.00020821,3]
[334684213,1723469448210,-501.33411686,0.00020821,3]
[334684214,1723469448220,-500.0,0.00020821,3]
[334684215,1723469448230,-512.68322596,0.00020821,3]
[334684216,1723469448240,-503.41653541,0.00020821,3]
[334684217,1723469448250,-500.0,0.00020821,3]
[334684218,1723469448259,-500.0,0.00020821,3]
[334684219,1723469448269,-500.0,0.00020821,3]
[334684220,1723469448278,-500.0,0.00020821,3]
[334684221,1723469448287,-1656.99,0.00020821,3]
[334684222,1723469448297,-500.0,0.00020821,3]
[334684223,1723469448306,-1691.43,0.00020821,3]
[334684224,1723469448316,-500.0,0.00020821,3]
[334684225,1723469448326,-2631.68,0.00020821,3]
[334684226,1723469448338,-151.0,0.00020821,2]
[334684227,1723469448348,-151.0,0.00020821,2]
[334684228,1723469448358,-151.0,0.00020821,2]
[334684229,1723469448368,-988.56,0.00020821,3]
[334684230,1723469448380,-1109.71,0.00020821,3]
[334684231,1723469448390,-151.0,0.00020821,2]
[334684232,1723469448402,-151.0,0.00020821,2]
[334684233,1723469448412,-500.0,0.00020821,3]
[334684234,1723469448421,-151.0,0.00020821,2]
[334684235,1723469448431,-500.0,0.00020821,3]
[334684236,1723469448441,-504.21239175,0.00020821,3]
[334684237,1723469448451,-505.30193001,0.00020821,3]
[334684238,1723469448462,-1244.984602,0.00020821,2]
[334684239,1723469448472,-1244.984602,0.00020821,2]
[334684240,1723469448482,-1244.984602,0.00020821,2]
[334684241,1723469448493,-12516.51,0.00020821,3]
[334684242,1723469448503,-668.98,0.00020821,3]
[334684243,1723469448512,-2464.56,0.00020821,3]
[334684244,1723469448523,-500.0,0.00020821,3]
[334684245,1723469448533,-1244.984602,0.00020821,2]
[334684246,1723469448542,-1244.984602,0.00020821,2]
[334684247,1723469448552,-1244.984602,0.00020821,2]
[334684248,1723469448561,-500.0,0.00020821,3]
[334684249,1723469448571,-151.0,0.00020821,2]
[334684250,1723469448581,-218.526785,0.00020821,2]
[334684251,1723469448590,-500.0,0.00020821,3]
[334684252,1723469448600,-1609.68,0.00020821,3]
[334684253,1723469448610,-825.74,0.00020821,3]
[334684254,1723469448620,-508.82790382,0.00020821,3]
[334684255,1723469448630,-500.0,0.00020821,3]
[334684256,1723469448640,-500.0,0.00020821,3]
[334684257,1723469448653,-500.0,0.00020821,3]
[334684258,1723469448662,-504.68628775,0.00020821,3]
[334684259,1723469448672,-502.38200505,0.00020821,3]
[334684260,1723469448681,-500.0,0.00020821,3]
[334684261,1723469448691,-500.0,0.00020821,3]
[334684262,1723469448701,-3882.9,0.00020821,3]
[334684263,1723469448711,-13392.86,0.00020821,3]
[334684264,1723469448720,-509.59232505,0.00020821,3]
[334684265,1723469448730,-502.6501975,0.00020821,3]
[334684266,1723469448740,-1157.59,0.00020821,3]
[334684267,1723469448749,-500.0,0.00020821,3]
[334684268,1723469448759,-338.398796,0.00020821,2]
[334684269,1723469448768,-338.398796,0.00020821,2]
[334684270,1723469448777,-338.398796,0.00020821,2]
[334684271,1723469448787,-503.67086892,0.00020821,3]
[334684272,1723469448797,-338.398796,0.00020821,2]
[334684273,1723469448806,-500.0,0.00020821,3]
[334684274,1723469448816,-500.0,0.00020821,3]
[334684275,1723469448826,-954.32,0.00020821,3]
[334684276,1723469448835,-500.0,0.00020821,3]
[334684277,1723469448955,-2248.77,0.00020821,3]
[334684278,1723469448967,-338.398796,0.00020821,2]
[334684279,1723469448977,-338.398796,0.00020821,2]
[334684280,1723469448988,-500.0,0.00020821,3]
[334684281,1723469448998,-338.398796,0.00020821,2]
[334684282,1723469449008,-338.398796,0.00020821,2]
[334684283,1723469449018,-1443.84,0.00020821,3]
[334684284,1723469449028,-500.0,0.00020821,3]
[334684285,1723469449037,-538.19207241,0.00020821,3]
[334684286,1723469449047,-589.532529,0.00020821,2]
[334684287,1723469449056,-1824.79,0.00020821,3]
[334684288,1723469449066,-589.532529,0.00020821,2]
[334684289,1723469449076,-589.532529,0.00020821,2]
[334684290,1723469449085,-589.532529,0.00020821,2]
[334684291,1723469449095,-500.0,0.00020821,3]
[334684292,1723469449105,-2252.73,0.00020821,3]
[334684293,1723469449114,-505.70149761,0.00020821,3]
[334684294,1723469449124,-589.532529,0.00020821,2]
[334684295,1723469449134,-1405.2,0.00020821,3]
[334684296,1723469449145,-500.0,0.00020821,3]
[334684297,1723469449154,-589.532529,0.00020821,2]
[334684298,1723469449163,-589.532529,0.00020821,2]
[334684299,1723469449172,-395.118309,0.00020821,2]
[334684300,1723469449181,-395.118309,0.00020821,2]
[334684301,1723469449190,-2168.74,0.00020821,3]
[334684302,1723469449200,-589.532529,0.00020821,2]
[334684303,1723469449209,-395.118309,0.00020821,2]
[334684304,1723469449219,-744.54,0.00020821,3]
[334684305,1723469449229,-395.118309,0.00020821,2]
[334684306,1723469449239,-632.82,0.00020821,3]
[334684307,1723469449248,-395.118309,0.00020821,2]
[334684308,1723469449258,-395.118309,0.00020821,2]
[334684309,1723469449267,-395.118309,0.00020821,2]
[334684310,1723469449277,-500.0,0.00020821,3]
[334684311,1723469449286,-395.118309,0.00020821,2]
[334684312,1723469449296,-4498.19,0.00020821,3]
[334684313,1723469449306,-500.0,0.00020821,3]
[334684314,1723469449315,-500.0,0.00020821,3]
[334684315,1723469449325,-500.0,0.00020821,3]
[334684316,1723469449334,-501.98845617,0.00020821,3]
[334684317,1723469449343,-506.19468139,0.00020821,3]
[334684318,1723469449352,-1142.9,0.00020821,3]
[334684319,1723469449362,-500.0,0.00020821,3]
[334684320,1723469449371,-500.0,0.00020821,3]
[334684321,1723469449381,-500.0,0.00020821,3]
[334684322,1723469449391,-503.3674401,0.00020821,3]
[334684323,1723469449402,-779.72,0.00020821,3]
[334684324,1723469449412,-501.4743432,0.00020821,3]
[334684325,1723469449421,-500.0,0.00020821,3]
[334684326,1723469449430,-998.91,0.00020821,3]
[334684327,1723469449440,-500.0,0.00020821,3]
[334684328,1723469449450,-500.0,0.00020821,3]
[334684329,1723469449459,-1415.09,0.00020821,3]
[334684330,1723469449469,-500.0,0.00020821,3]
[334684331,1723469449479,-2354.1,0.00020821,3]
[334684332,1723469449488,-500.0,0.00020821,3]
[334684333,1723469449498,-152.797487,0.00020821,2]
[334684334,1723469449507,-932.5,0.00020821,3]
[334684335,1723469449516,-500.0,0.00020821,3]
[334684336,1723469449525,-1240.38,0.00020821,3]
[334684337,1723469449534,-500.0,0.00020821,3]
[334684338,1723469449543,-649.7,0.00020821,3]
[334684339,1723469449553,-500.0,0.00020821,3]
[334684340,1723469449563,-500.0,0.00020821,3]
[334684341,1723469449572,-2172.06,0.00020821,3]
[334684342,1723469449582,-500.0,0.00020821,3]
[334684343,1723469449591,-500.0,0.00020821,3]
[334684344,1723469449600,-500.0,0.00020821,3]
[334684345,1723469449610,-500.0,0.00020821,3]
[334684346,1723469449619,-509.39676028,0.00020821,3]
[334684347,1723469449629,-500.0,0.00020821,3]
[334684348,1723469449639,-500.0,0.00020821,3]
[334684349,1723469449653,-500.0,0.00020821,3]
[334684350,1723469449668,-314.555463,0.00020821,2]
[334684351,1723469449677,-500.0,0.00020821,3]
[334684352,1723469449686,-314.555463,0.00020821,2]
[334684353,1723469449696,-555.00322272,0.00020821,3]
[334684354,1723469449706,-314.555463,0.00020821,2]
[334684355,1723469449715,-314.555463,0.00020821,2]
[334684356,1723469449724,-1222.02,0.00020821,3]
[334684357,1723469449734,-500.0,0.00020821,3]
[334684358,1723469449743,-151.0,0.00020821,2]
[334684359,1723469449753,-151.0,0.00020821,2]
[334684360,1723469449762,-314.555463,0.00020821,2]
[334684361,1723469449771,-314.555463,0.00020821,2]
[334684362,1723469449780,-422.79778272,0.00020821,3]
[334684363,1723469449789,-314.555463,0.00020821,2]
[334684364,1723469449798,-314.555463,0.00020821,2]
[334684365,1723469449808,-505.87900514,0.00020821,3]
[334684366,1723469449817,-6707.8,0.00020821,3]
[334684367,1723469449826,-500.0,0.00020821,3]
[334684368,1723469449841,-151.0,0.00020855,2]
[334684369,1723469449850,-200.0,0.00020873,2]
[334684370,1723469449864,-200.0,0.00020873,2]
[334684371,1723469449874,-600.0,0.00020884,2]
[334684372,1723469449884,-587.0,0.00020894,2]
[334684373,1723469449900,-1000.0,0.000209,2]
[334684374,1723469449909,-602.0,0.000209,2]
[334684375,1723469449918,-2127.54848257,0.00020913,2]
[334684376,1723469449928,-160.0,0.00020924,5]
[334684377,1723469449938,-850.24651816,0.00020932,2]
[334684378,1723469449947,-342.39119771,0.00020932,2]
[334684379,1723469449957,-932.99527997,0.00020932,2]
[334684380,1723469449967,-157.74358322,0.00020932,2]
[334684381,1723469449977,-1612.28857669,0.00020932,2]
[334684382,1723469449986,-155.18167037,0.00020932,2]
[334684383,1723469449995,-196.63865106,0.00020932,2]
[334684384,1723469450005,-897.92379833,0.00020932,2]
[334684385,1723469450014,-165.71411466,0.00020932,2]
[334684386,1723469450023,-277.46411292,0.00020932,2]
[334684387,1723469450034,-601.28608268,0.00020932,2]
[334684388,1723469450043,-183.02184235,0.00020932,2]
[334684389,1723469450053,-3090.72018399,0.00020932,2]
[334684390,1723469450062,-164.68267748,0.00020932,2]
[334684391,1723469450072,-417.60791455,0.00020932,2]
[334684392,1723469450082,-897.92379833,0.00020932,2]
[334684393,1723469450092,-165.71411466,0.00020932,2]
[334684394,1723469450101,-154.76012181,0.00020932,2]
[334684395,1723469450111,-492.86524914,0.00020932,2]
[334684396,1723469450122,-150.01,0.00020998,2]
[334684397,1723469450131,-2993.97680522,0.00020998,2]
[334684398,1723469450141,-2605.98976067,0.00020999,2]
[334684399,1723469450152,-285.0,0.00021,2]
[334684400,1723469450163,-1000.0,0.00021,21]
[334684401,1723469450172,-3000.0,0.00021,2]
[334684402,1723469450181,-10000.0,0.00021,2]
[334684403,1723469450190,-10000.0,0.00021,2]
[334684404,1723469450199,-10000.0,0.00021,2]
[334684405,1723469450207,-10000.0,0.00021,2]
[334684406,1723469450216,-10000.0,0.00021,2]
[334684407,1723469450224,-13736.06491876,0.00021,2]
[334684408,1723469450232,-1868.67655029,0.00021,2]
[334684409,1723469450240,-10000.0,0.00021,5]
[334684410,1723469450249,-3348.28289289,0.00021,2]
[334684411,1723469450258,-7486.0287597,0.00021,2]
[334684412,1723469450267,-232.82776921,0.00021,2]
[334684413,1723469450277,-151.0,0.00021,2]
[334684414,1723469450286,-3000.0,0.0002101,2]
[334684415,1723469450296,-3000.0,0.0002102,2]
[334684416,1723469450305,-151.0,0.0002103,2]
[334684417,1723469450314,-3000.0,0.0002103,2]
[334684418,1723469450324,-338.398796,0.0002103,2]
[334684419,1723469450333,-338.398796,0.0002103,2]
[334684420,1723469450343,-589.532529,0.0002103,2]
[334684421,1723469450352,-589.532529,0.0002103,2]
[334684422,1723469450361,-395.118309,0.0002103,2]
[334684423,1723469450370,-395.118309,0.0002103,2]
[334684424,1723469450379,-314.555463,0.0002103,2]
[334684425,1723469450388,-314.555463,0.0002103,2]
[334684426,1723469450400,-157.0,0.0002104,5]
[334684427,1723469450410,-377.30891,0.0002104,2]
[334684428,1723469450419,-377.30891,0.0002104,2]
[334684429,1723469450428,-3000.0,0.0002104,2]
[334684430,1723469450438,-157.11976669,0.00021048,2]
[334684431,1723469450448,-157.11976669,0.00021048,2]
[334684432,1723469450458,-3000.0,0.0002105,2]
[334684433,1723469450466,-3000.0,0.0002106,2]
[334684434,1723469450475,-151.0,0.0002106,2]
[334684435,1723469450485,-284.922441,0.0002106,2]
[334684436,1723469450494,-1244.984602,0.0002106,2]